lending/lending_fUSD_20260119
["ID","MTS","AMOUNT","RATE_DAILY","PERIOD"]
[402732228,1768858231938,-500.0,0.00015972,2]
[402732230,1768858231947,-500.0,0.00015972,2]
[402732232,1768858231957,-500.0,0.00015972,2]
[402732234,1768858231967,-500.0,0.00015972,2]
[402732236,1768858231976,-500.0,0.00015972,2]
[402732238,1768858231985,-270.0,0.00015972,2]
[402732240,1768858231994,-500.0,0.00015973,2]
[402732242,1768858232004,-500.0,0.00015973,2]
[402732244,1768858232013,-500.0,0.00015973,2]
[402732246,1768858232022,-502.39876263,0.00015973,2]
[402732248,1768858232031,-454.565108,0.00015973,2]
[402732250,1768858232040,-500.0,0.00015973,2]
[402732252,1768858232049,-500.0,0.00015973,2]
[402732254,1768858232059,-500.0,0.00015973,2]
[402732256,1768858232072,-500.0,0.00015973,2]
[402732259,1768858232082,-500.0,0.00015973,2]
[402732261,1768858232097,-3156.85336072,0.00015991,2]
[402732263,1768858232110,-10565.51842078,0.00015991,2]
[402732265,1768858232119,-3248.20228325,0.00016098,2]
[402732267,1768858232134,-2435.93202889,0.00016098,2]
[402732269,1768858232143,-500.0,0.00016139,2]
[402732270,1768858232152,-500.0,0.00016139,2]
[402732271,1768858232162,-500.0,0.00016139,2]
[402732272,1768858232173,-500.0,0.00016139,2]
[402732273,1768858232182,-251.41764929,0.00016139,2]
[402732274,1768858232192,-500.0,0.00016139,2]
[402732275,1768858232202,-500.0,0.00016139,2]
[402732276,1768858232213,-500.0,0.00016139,2]
[402732277,1768858232222,-5000.00780211,0.000162,5]
[402732278,1768858232231,-5684.13431209,0.00016298,2]
[402732279,1768858232242,-582.95,0.00016306,2]
[402732280,1768858232253,-6445.16,0.00016334,2]
[402732281,1768858232263,-336.54430369,0.00016392,2]
[402732282,1768858232273,-298.47235783,0.00016398,2]
[402732283,1768858232283,-500.0,0.00016398,2]
[402732284,1768858232293,-500.0,0.00016398,2]
[402732285,1768858232304,-500.0,0.00016398,2]
[402732286,1768858232313,-500.0,0.00016398,2]
[402732287,1768858232324,-558.28,0.00016398,2]
[402732288,1768858232334,-9999.99,0.00016398,2]
[402732289,1768858232344,-1835.03,0.00016398,2]
[402732290,1768858232354,-210.0,0.0001641,2]
[402732291,1768858232364,-349.0,0.00016415,2]
[402732292,1768858232374,-193.0,0.00016415,2]
[402732293,1768858232384,-300.0,0.00016438,2]
[402732294,1768858232394,-500.0,0.00016438,2]
[402732295,1768858232404,-500.0,0.00016438,2]
[402732296,1768858232413,-179.61008058,0.00016438,2]
[402732297,1768858232429,-320.38991942,0.00016438,2]
[402732298,1768858232440,-500.0,0.00016438,2]
[402732299,1768858232449,-500.0,0.00016438,2]
[402732300,1768858232459,-432.66290132,0.00016438,2]
[402732301,1768858232478,-67.33709868,0.00016438,2]
[402732302,1768858232488,-500.0,0.00016438,2]
[402732303,1768858232498,-500.0,0.00016438,2]
[402732304,1768858232508,-500.0,0.00016438,2]
[402732305,1768858232519,-500.0,0.00016438,2]
[402732306,1768858232529,-488.51145622,0.00016438,2]
[402732307,1768858232539,-500.0,0.00016438,2]
[402732308,1768858232548,-500.0,0.00016438,2]
[402732309,1768858232557,-500.0,0.00016438,2]
[402732310,1768858232567,-500.0,0.00016438,2]
[402732311,1768858232576,-500.0,0.00016438,2]
[402732312,1768858232586,-500.0,0.00016438,2]
[402732313,1768858232595,-500.0,0.00016438,2]
[402732314,1768858232605,-500.0,0.00016438,2]
[402732315,1768858232614,-500.0,0.00016438,2]
[402732316,1768858232623,-500.0,0.00016438,2]
[402732317,1768858232634,-500.0,0.00016438,2]
[402732318,1768858232644,-500.0,0.00016438,2]
[402732319,1768858232654,-500.0,0.00016438,2]
[402732320,1768858232663,-500.0,0.00016438,2]
[402732321,1768858232673,-500.0,0.00016438,2]
[402732322,1768858232683,-500.0,0.00016438,2]
[402732323,1768858232693,-500.0,0.00016438,2]
[402732324,1768858232702,-500.0,0.00016438,2]
[402732325,1768858232711,-500.0,0.00016438,2]
[402732326,1768858232720,-500.0,0.00016438,2]
[402732327,1768858232730,-500.0,0.00016438,2]
[402732328,1768858232739,-500.0,0.00016438,2]
[402732329,1768858232748,-500.0,0.00016438,2]
[402732330,1768858232758,-500.0,0.00016438,2]
[402732331,1768858232767,-500.0,0.00016438,2]
[402732332,1768858232776,-500.0,0.00016438,2]
[402732333,1768858232785,-81.07129784,0.00016438,2]
[402732338,1768858237772,-272.71977611,0.00016438,2]
[402732339,1768858237782,-500.0,0.00016438,2]
[402732340,1768858237793,-500.0,0.00016438,2]
[402732341,1768858237802,-1393.0,0.00016438,2]
[402732342,1768858237811,-438.0,0.00016443,2]
[402732343,1768858237820,-191.0,0.00016448,2]
[402732344,1768858237831,-176.0,0.0001648,2]
[402732345,1768858237841,-751.18,0.00016495,2]
[402732346,1768858237850,-5684.13431209,0.00016498,2]
[402732347,1768858237860,-160.0,0.00016528,2]
[402732348,1768858237871,-5684.13431209,0.00016699,2]
[402732349,1768858237882,-1101.0,0.00016796,2]
[402732350,1768858237891,-905.21882691,0.00016854,2]
[402732351,1768858237901,-270.0,0.00016854,2]
[402732352,1768858237910,-5684.13431209,0.00016899,2]
[402732353,1768858237919,-1834.34,0.00017,2]
[402732354,1768858237928,-1834.34,0.00017,2]
[402732355,1768858237937,-1834.34,0.00017,2]
[402732356,1768858237946,-1834.34,0.00017,2]
[402732357,1768858237955,-250.0,0.00017,2]
[402732358,1768858237965,-510.0,0.00017089,2]
[402732359,1768858237974,-5684.13431209,0.00017099,2]
[402732360,1768858237984,-1834.34,0.000172,2]
[402732361,1768858237994,-5684.13431209,0.00017299,2]
[402732362,1768858238003,-751.18,0.00017319,2]
[402732363,1768858238012,-13722.3717815,0.00017323,2]
[402732364,1768858238022,-446.08,0.00017334,3]
[402732365,1768858238032,-10000.01,0.00017344,2]
[402732366,1768858238042,-155.62,0.00017357,2]
[402732367,1768858238051,-168.0,0.00017368,2]
[402732368,1768858238061,-250.0,0.00017399,2]
[402732369,1768858238070,-300.0,0.00017399,2]
[402732370,1768858238080,-600.0,0.00017399,2]
[402732371,1768858238090,-150.09805643,0.00017399,2]
[402732372,1768858238104,-5000.0,0.00017399,2]
[402732373,1768858238113,-235.41480451,0.00017399,2]
[402732375,1768858238122,-195.0,0.00017399,2]
[402732376,1768858238132,-195.0,0.00017399,2]
[402732377,1768858238141,-168.0,0.00017409,2]
[402732378,1768858238151,-5684.13431209,0.000175,2]
[402732379,1768858238160,-1680.0,0.00017549,2]
[402732380,1768858238171,-150.0,0.00017615,2]
[402732381,1768858238180,-1101.0,0.0001768,2]
[402732382,1768858238551,-500.0,0.00017683,2]
[402732383,1768858238561,-150.0,0.00017683,2]
[402732384,1768858238570,-500.0,0.00017683,2]
[402732385,1768858238580,-150.0,0.00017683,2]
[402732386,1768858238589,-228.08835747,0.00017683,2]
[402732387,1768858238599,-210.20107103,0.00017683,2]
[402732388,1768858238609,-150.0,0.00017683,2]
[402732389,1768858238618,-5684.13431209,0.000177,2]
[402732390,1768858238627,-207.83,0.00017703,2]
[402732391,1768858238637,-500.0,0.00017729,2]
[402732392,1768858238646,-151.0,0.0001773,2]
[402732393,1768858238656,-578.20924308,0.0001773,2]
[402732394,1768858238666,-426.99437804,0.0001773,2]
[402732395,1768858238676,-187.78006525,0.0001773,2]
[402732396,1768858238686,-4444.0,0.0001773,2]
[402732397,1768858238695,-620.0,0.0001773,2]
[402732398,1768858238705,-174.61919141,0.0001773,2]
[402732399,1768858238715,-322.6107,0.0001773,2]
[402732400,1768858238725,-514.84070869,0.0001773,2]
[402732401,1768858238735,-500.0,0.00017738,2]
[402732402,1768858238745,-150.0,0.00017738,2]
[402732403,1768858238755,-500.0,0.00017738,2]
[402732404,1768858238765,-150.0,0.00017738,2]
[402732405,1768858238776,-150.0,0.00017738,2]
[402732406,1768858238785,-868.3,0.00017741,2]
[402732407,1768858238795,-168.0,0.00017773,2]
[402732408,1768858238806,-500.0,0.00017793,2]
[402732409,1768858238816,-150.0,0.00017793,2]
[402732410,1768858238826,-500.0,0.00017793,2]
[402732411,1768858238837,-150.0,0.00017793,2]
[402732412,1768858238847,-168.0,0.00017833,2]
[402732413,1768858238857,-500.0,0.00017847,2]
[402732414,1768858238867,-152.74,0.00017869,2]
[402732415,1768858238877,-168.0,0.00017878,2]
[402732416,1768858238888,-4562.2442,0.000179,2]
[402732417,1768858238897,-5684.13431209,0.000179,2]
[402732418,1768858238907,-1279.4068199,0.000179,2]
[402732419,1768858238916,-6504.31730256,0.000179,2]
[402732420,1768858238925,-446.65262846,0.000179,2]
[402732421,1768858238935,-323.51281498,0.00017902,2]
[402732422,1768858238945,-572.75941177,0.00017973,2]
[402732423,1768858238954,-162.75189574,0.00017973,2]
[402732424,1768858238963,-238.87520823,0.00017973,2]
[402732425,1768858238972,-500.3495824,0.00017973,2]
[402732426,1768858238982,-500.40956431,0.00017973,2]
[402732427,1768858238991,-500.72799758,0.00017973,2]
[402732428,1768858239000,-500.39252763,0.00017973,2]
[402732429,1768858239010,-500.66472951,0.00017973,2]
[402732430,1768858239019,-500.63546159,0.00017973,2]
[402732431,1768858239029,-501.10380402,0.00017973,2]
[402732432,1768858239038,-500.0,0.00017973,2]
[402732433,1768858239049,-500.0,0.00017973,2]
[402732434,1768858239060,-501.20758893,0.00017973,2]
[402732435,1768858239070,-500.65767984,0.00017973,2]
[402732436,1768858239080,-160.83675404,0.00017973,2]
[402732437,1768858239091,-157.20652356,0.00017973,2]
[402732438,1768858239105,-159.91806685,0.00017973,2]
[402732439,1768858239115,-500.58414783,0.00017973,2]
[402732440,1768858239125,-500.0,0.00017973,2]
[402732441,1768858239136,-501.72422198,0.00017973,2]
[402732442,1768858239146,-500.60696408,0.00017973,2]
[402732443,1768858239157,-501.71835951,0.00017973,2]
[402732444,1768858239169,-501.31181972,0.00017973,2]
[402732445,1768858239186,-500.58490426,0.00017973,2]
[402732446,1768858239197,-500.0,0.00017973,2]
[402732447,1768858239208,-500.43397336,0.00017973,2]
[402732448,1768858239219,-500.5094533,0.00017973,2]
[402732449,1768858239228,-500.0,0.00017973,2]
[402732450,1768858239238,-153.95898556,0.0001799,2]
[402732451,1768858239249,-153.95898556,0.0001799,2]
[402732452,1768858239259,-151.0,0.00017997,2]
[402732453,1768858239269,-300.0,0.00017999,2]
[402732454,1768858239280,-151.0,0.00018,2]
[402732455,1768858239290,-151.0,0.00018,2]
[402732456,1768858239301,-151.0,0.00018,2]
[402732457,1768858239310,-151.0,0.00018,2]
[402732458,1768858239320,-185.3371496,0.00018,2]
[402732459,1768858239330,-150.0,0.00018,2]
[402732460,1768858239339,-1416.57077004,0.00018,2]
[402732461,1768858239349,-150.0,0.00018,2]
[402732462,1768858239359,-6754.64589002,0.00018,2]
[402732463,1768858239368,-150.0,0.00018,2]
[402732464,1768858239378,-1239.49,0.00018,7]
[402732465,1768858239390,-888.19576499,0.00018,2]
[402732466,1768858239400,-151.0,0.00018,2]
[402732467,1768858239409,-151.0,0.00018,2]
[402732468,1768858239419,-151.0,0.00018,2]
[402732469,1768858239429,-302.0,0.00018,2]
[402732470,1768858239439,-1899572.10714704,0.00018,2]
[402732471,1768858239464,-907.14,0.00018,2]
[402732472,1768858239499,-476.9799995,0.00018,2]
[402732473,1768858239511,-408.348,0.00018,2]
[402732474,1768858239522,-507.71285999,0.00018,2]
[402732475,1768858240067,-3101.14109984,0.00018,2]
[402732476,1768858240078,-1731.41031661,0.00018,2]
[402732484,1768858242628,-4220729.19725615,0.00018,2]
[402732487,1768858242640,-4081.75028324,0.00018,2]
[402732488,1768858242651,-2384.78114555,0.00018,2]
[402732493,1768858242924,-96183.604407,0.00018,2]
[402732494,1768858242936,-5371.37422804,0.00018,2]
[402732495,1768858242950,-3412.62979512,0.00018,2]
[402732496,1768858242961,-296.89316749,0.00018,2]
[402732497,1768858242976,-541.54300055,0.00018,2]
[402732498,1768858242986,-464.76347741,0.00018,2]
[402732499,1768858242997,-423.95581672,0.00018,2]
[402732500,1768858243008,-1325.45,0.00018,2]
[402732501,1768858243019,-870.26015331,0.00018,2]
[402732502,1768858245671,-184.87505214,0.000179,3]
[402732503,1768858245681,-7445.1249509,0.00018,2]
[402732504,1768858245693,-8107.23309599,0.00018,2]
[402732505,1768858245731,-22437.6933177,0.00018,2]
[402732506,1768858245787,-151396.94589311,0.00018,2]
[402732507,1768858245870,-3179.7339472,0.00018,2]
[402732508,1768858245881,-18840.0,0.00018,2]
[402732509,1768858245958,-999.98,0.00018,2]
[402732511,1768858336503,6195.87,0.00013831,2]
[402732514,1768858748229,7496.012094,7.945e-05,2]
[402732515,1768859025741,1600.0,0.00015343,2]
[402732517,1768859431840,-1570.57116541,0.00015718,2]
[402732518,1768859431936,-500.0,0.00015718,2]
[402732519,1768859431949,-573.72783459,0.00015718,2]
[402732520,1768859431961,-156.215,0.00015718,2]
[402732521,1768859431970,-195.0,0.00015792,2]
[402732522,1768859431985,-1200.0,0.0001589,2]
[402732523,1768859431996,-300.0,0.00015891,2]
[402732524,1768859432006,-300.0,0.00015891,2]
[402732525,1768859432016,-300.0,0.00015891,2]
[402732526,1768859432026,-500.0,0.00015892,2]
[402732527,1768859432036,-500.0,0.00015892,2]
[402732528,1768859432046,-500.0,0.00015892,2]
[402732529,1768859432056,-300.7936686,0.00015892,2]
[402732532,1768859432081,-199.2063314,0.00015892,2]
[402732534,1768859432090,-500.0,0.00015892,2]
[402732536,1768859432100,-500.0,0.00015892,2]
[402732538,1768859432110,-578.8751407,0.00015892,2]
[402732540,1768859432120,-500.0,0.00015892,2]
[402732542,1768859432130,-500.0,0.00015892,2]
[402732544,1768859432140,-500.0,0.00015892,2]
[402732546,1768859432150,-500.0,0.00015892,2]
[402732548,1768859432160,-500.0,0.00015892,2]
[402732551,1768859432170,-500.0,0.00015892,2]
[402732553,1768859432180,-500.0,0.00015892,2]
[402732556,1768859432191,-500.0,0.00015892,2]
[402732557,1768859432200,-500.0,0.00015892,2]
[402732560,1768859432211,-500.0,0.00015892,2]
[402732562,1768859432222,-500.0,0.00015892,2]
[402732564,1768859432234,-500.0,0.00015892,2]
[402732566,1768859432244,-500.0,0.00015892,2]
[402732569,1768859432254,-500.0,0.00015892,2]
[402732570,1768859432266,-209.87626631,0.00015892,2]
[402732571,1768859432277,-500.0,0.00015892,2]
[402732572,1768859432286,-500.0,0.00015892,2]
[402732573,1768859432296,-500.0,0.00015892,2]
[402732574,1768859432306,-500.0,0.00015892,2]
[402732575,1768859432316,-500.0,0.00015892,2]
[402732576,1768859432326,-500.0,0.00015892,2]
[402732577,1768859432335,-699.21,0.00015892,2]
[402732578,1768859432350,-6662.74515077,0.00015894,2]
[402732579,1768859432361,-24906.4477988,0.00016,2]
[402732580,1768859432371,-299.99,0.00016,2]
[402732581,1768859432381,-500.0,0.00016038,2]
[402732582,1768859432391,-197.53315982,0.00016038,2]
[402732583,1768859432401,-291.96335996,0.00016038,2]
[402732584,1768859432411,-167.85957945,0.00016038,2]
[402732585,1768859432420,-500.0,0.00016038,2]
[402732586,1768859432430,-209.99690336,0.00016038,2]
[402732587,1768859432441,-246.99783235,0.00016038,2]
[402732588,1768859432451,-500.0,0.00016038,2]
[402732589,1768859432461,-4646.5017146,0.00016039,2]
[402732590,1768859432471,-161.54,0.00016057,2]
[402732591,1768859432481,-500.0,0.00016139,2]
[402732592,1768859432491,-500.0,0.00016139,2]
[402732593,1768859432501,-500.0,0.00016139,2]
[402732594,1768859432511,-500.0,0.00016139,2]
[402732595,1768859432523,-500.0,0.00016139,2]
[402732596,1768859432534,-221.95597244,0.00016139,2]
[402732597,1768859432544,-500.0,0.00016139,2]
[402732598,1768859432555,-500.60631611,0.00016139,2]
[402732599,1768859432564,-2485.84,0.00016139,2]
[402732600,1768859432574,-4414.94,0.00016157,2]
[402732601,1768859432585,-150.0,0.00016164,2]
[402732602,1768859432595,-210.20107103,0.00016164,2]
[402732603,1768859432606,-150.0,0.00016164,2]
[402732604,1768859432616,-699.21,0.00016166,2]
[402732605,1768859432626,-1500.0,0.00016196,2]
[402732606,1768859432636,-1000.0,0.00016206,2]
[402732607,1768859432646,-150.0,0.00016219,2]
[402732608,1768859432656,-150.0,0.00016219,2]
[402732609,1768859432666,-4646.50171455,0.00016246,2]
[402732610,1768859432676,-150.0,0.00016274,2]
[402732611,1768859432687,-642.21882691,0.00016293,2]
[402732612,1768859432697,-174.0,0.00016293,2]
[402732613,1768859432711,-159.0,0.00016325,2]
[402732614,1768859432721,-263.0,0.00016341,2]
[402732615,1768859432732,-216.0,0.00016341,2]
[402732616,1768859432742,-477.0,0.00016373,2]
[402732617,1768859432753,-500.0,0.00016388,2]
[402732618,1768859432763,-500.0,0.00016437,2]
[402732619,1768859432774,-201.52764217,0.00016438,2]
[402732620,1768859432785,-186.8664774,0.00016438,2]
[402732621,1768859432796,-500.0,0.00016438,2]
[402732622,1768859432806,-500.0,0.00016438,2]
[402732623,1768859432817,-500.0,0.00016438,2]
[402732624,1768859432827,-500.0,0.00016438,2]
[402732625,1768859432837,-500.0,0.00016438,2]
[402732626,1768859432847,-629.67805152,0.00016438,2]
[402732627,1768859432857,-500.0,0.00016438,2]
[402732628,1768859432868,-300.0,0.00016438,2]
[402732629,1768859432877,-1393.0,0.00016438,2]
[402732630,1768859432888,-699.21,0.0001644,2]
[402732631,1768859432898,-4646.50171455,0.00016453,2]
[402732632,1768859432908,-151.0,0.00016514,2]
[402732633,1768859432918,-151.0,0.00016514,2]
[402732634,1768859432929,-151.0,0.00016515,2]
[402732635,1768859432939,-151.0,0.00016515,2]
[402732636,1768859432949,-4646.50171455,0.00016659,2]
[402732637,1768859432959,-690.75,0.00016669,2]
[402732638,1768859432970,-200.0,0.00016712,2]
[402732639,1768859432980,-166.34,0.00016712,2]
[402732640,1768859432990,-699.21,0.00016714,2]
[402732641,1768859433000,-150.0,0.00016726,2]
[402732642,1768859433010,-150.0,0.00016726,2]
[402732643,1768859433020,-150.0,0.00016726,2]
[402732644,1768859433030,-150.0,0.00016726,2]
[402732645,1768859433041,-150.0,0.00016726,2]
[402732646,1768859433051,-150.0,0.00016726,2]
[402732647,1768859433062,-500.0,0.00016726,2]
[402732648,1768859433071,-500.0,0.00016726,2]
[402732649,1768859433082,-150.0,0.00016781,2]
[402732650,1768859433092,-150.0,0.00016781,2]
[402732651,1768859433102,-150.0,0.00016781,2]
[402732652,1768859433112,-150.0,0.00016781,2]
[402732653,1768859433121,-150.0,0.00016781,2]
[402732654,1768859433131,-150.0,0.00016781,2]
[402732655,1768859433141,-500.0,0.00016781,2]
[402732656,1768859433150,-500.0,0.00016781,2]
[402732657,1768859433160,-1000.0,0.00016814,2]
[402732658,1768859433170,-250.0,0.00016836,2]
[402732659,1768859433179,-250.0,0.00016836,2]
[402732660,1768859433189,-250.0,0.00016836,2]
[402732661,1768859433198,-150.0,0.00016836,2]
[402732662,1768859433208,-500.0,0.00016836,2]
[402732663,1768859433218,-500.0,0.00016836,2]
[402732664,1768859433228,-4646.50171455,0.00016866,2]
[402732665,1768859433238,-190.93,0.00016877,2]
[402732666,1768859433247,-500.0,0.0001689,2]
[402732667,1768859433258,-323.51281498,0.00016945,2]
[402732668,1768859433268,-161.54,0.00016949,2]
[402732669,1768859433278,-259.78,0.00016956,2]
[402732670,1768859433287,-699.21,0.00016988,2]
[402732671,1768859433297,-1834.34,0.00017,2]
[402732672,1768859433307,-1834.34,0.00017,2]
[402732673,1768859433317,-1834.34,0.00017,2]
[402732674,1768859433327,-1834.34,0.00017,2]
[402732675,1768859433336,-250.0,0.00017,2]
[402732676,1768859433346,-405.0,0.00017019,2]
[402732677,1768859433355,-4646.50171455,0.00017073,2]
[402732678,1768859433365,-200.0,0.00017095,2]
[402732679,1768859433375,-1158.71,0.0001715,2]
[402732680,1768859433385,-150.0,0.00017184,2]
[402732681,1768859433395,-1834.34,0.000172,2]
[402732682,1768859433404,-6662.74515077,0.00017229,2]
[402732683,1768859433414,-1600.0,0.0001726,2]
[402732684,1768859433423,-699.21,0.00017262,2]
[402732685,1768859433433,-500.0,0.0001727,2]
[402732686,1768859433443,-500.0,0.0001727,2]
[402732687,1768859433453,-554.75776,0.0001727,2]
[402732688,1768859433462,-4646.50171455,0.0001728,2]
[402732689,1768859433471,-2500.0,0.0001729,2]
[402732690,1768859433482,-195.0,0.0001729,2]
[402732691,1768859433492,-250.0,0.0001729,2]
[402732692,1768859433501,-600.0,0.0001729,2]
[402732693,1768859433514,-300.0,0.0001729,2]
[402732694,1768859433523,-235.41480451,0.0001729,2]
[402732695,1768859433533,-5000.0,0.0001729,2]
[402732696,1768859433543,-300.0,0.0001729,2]
[402732697,1768859433554,-420.0,0.00017376,2]
[402732698,1768859433564,-420.0,0.00017376,2]
[402732699,1768859433574,-446.08,0.00017411,3]
[402732700,1768859433585,-1000.0,0.00017421,2]
[402732701,1768859433595,-168.0,0.00017435,2]
[402732702,1768859433605,-1680.0,0.00017462,2]
[402732703,1768859433615,-150.0,0.00017464,2]
[402732704,1768859433625,-4646.50171455,0.00017486,2]
[402732705,1768859433635,-150.0,0.00017519,2]
[402732706,1768859433645,-699.21,0.00017536,2]
[402732707,1768859433655,-150.0,0.00017574,2]
[402732708,1768859433665,-4646.50171455,0.00017693,2]
[402732709,1768859433675,-1042.0,0.00017749,2]
[402732710,1768859433686,-699.22276109,0.0001781,2]
[402732711,1768859433695,-161.54,0.00017841,2]
[402732712,1768859433705,-168.0,0.00017855,2]
[402732713,1768859433714,-1000.0,0.000179,2]
[402732714,1768859433724,-4917.4067,0.000179,2]
[402732715,1768859433734,-4646.50171455,0.000179,2]
[402732716,1768859433744,-64767.40948042,0.000179,2]
[402732717,1768859433754,-204.30682996,0.000179,2]
[402732718,1768859433763,-1279.4068199,0.000179,2]
[402732719,1768859433773,-1355.06610473,0.000179,2]
[402732720,1768859433783,-162.70783597,0.000179,2]
[402732721,1768859433794,-335.44693796,0.00017951,2]
[402732722,1768859433804,-500.3495824,0.00017973,2]
[402732723,1768859433813,-500.40956431,0.00017973,2]
[402732724,1768859433823,-500.39252763,0.00017973,2]
[402732725,1768859433834,-500.72799758,0.00017973,2]
[402732726,1768859433844,-500.66472951,0.00017973,2]
[402732727,1768859433854,-500.63546159,0.00017973,2]
[402732728,1768859433863,-500.0,0.00017973,2]
[402732729,1768859433874,-500.43397336,0.00017973,2]
[402732730,1768859433884,-500.0,0.00017973,2]
[402732731,1768859433894,-500.58414783,0.00017973,2]
[402732732,1768859433903,-500.5094533,0.00017973,2]
[402732733,1768859433913,-501.10380402,0.00017973,2]
[402732734,1768859433923,-500.0,0.00017973,2]
[402732735,1768859433933,-572.75941177,0.00017973,2]
[402732736,1768859433943,-162.75189574,0.00017973,2]
[402732737,1768859433953,-501.72422198,0.00017973,2]
[402732738,1768859433962,-500.0,0.00017973,2]
[402732739,1768859433972,-500.0,0.00017973,2]
[402732740,1768859433982,-501.20758893,0.00017973,2]
[402732741,1768859433992,-500.65767984,0.00017973,2]
[402732742,1768859434003,-501.71835951,0.00017973,2]
[402732743,1768859434012,-500.60696408,0.00017973,2]
[402732744,1768859434022,-500.58490426,0.00017973,2]
[402732745,1768859434032,-501.31181972,0.00017973,2]
[402732746,1768859434042,-159.91806685,0.00017973,2]
[402732747,1768859434053,-157.20652356,0.00017973,2]
[402732748,1768859434064,-160.83675404,0.00017973,2]
[402732749,1768859434073,-153.95898556,0.0001799,2]
[402732750,1768859434084,-153.95898556,0.0001799,2]
[402732751,1768859434093,-151.0,0.00017997,2]
[402732752,1768859434103,-500.0,0.00017999,2]
[402732753,1768859434113,-500.0,0.00017999,2]
[402732754,1768859434123,-209.47,0.00017999,2]
[402732755,1768859434133,-182.044,0.00017999,2]
[402732756,1768859434143,-300.0,0.00017999,2]
[402732757,1768859434153,-300.0,0.00017999,2]
[402732758,1768859434163,-798484.62924097,0.00018,2]
[402732759,1768859434187,-696.56392447,0.00018,2]
[402732760,1768859434203,-609.8984744,0.00018,2]
[402732774,1768859438325,-2050328.2505559,0.00018,2]
[402732778,1768859438349,-408.36251769,0.00018,2]
[402732780,1768859438360,-2553.98606414,0.00018,2]
[402732782,1768859438371,-942.2,0.00018,2]
[402732800,1768859440013,-151.0,0.00016546,2]
[402732801,1768859440024,-151.0,0.00016546,2]
[402732802,1768859440035,-539.0,0.00018,2]
[402732803,1768859440305,-640.58000002,0.00018,2]
[402732804,1768859440317,-3436.85276673,0.00018,2]
[402732805,1768859440330,-910.1,0.00018,2]
[402732806,1768859440355,-1750753.39356037,0.00018,2]
[402732807,1768859440366,-2469975.80369578,0.00018,2]
[402732819,1768859443014,-500.0,0.00018,2]
[402732821,1768859443025,-1600.0,0.00018,2]
[402732822,1768859443126,-400.0,0.00018,2]
[402732823,1768859443137,-2246.26638089,0.00018,2]
[402732833,1768859445903,-500.0,0.00015891,2]
[402732834,1768859445914,-500.0,0.00015891,2]
[402732835,1768859445925,-378.8751407,0.00015891,2]
[402732836,1768859445935,-347.74200572,0.00016438,2]
[402732837,1768859445946,-2471.47670941,0.00018,2]
[402732852,1768860042966,5533.0,0.000152,2]
[402732853,1768860105822,5533.0,0.000155,3]
[402732854,1768860106055,5533.0,0.000151,2]
[402732855,1768860168187,5533.0,0.000153,3]
[402732856,1768860199254,5533.0,0.000155,5]
[402732857,1768860199555,5533.0,0.000151,3]
[402732858,1768860208914,-1734.29,0.00015524,2]
[402732859,1768860208938,-166.66,0.00015585,2]
[402732860,1768860230304,2599.05,0.000155,5]
[402732861,1768860230330,2933.95,0.000155,5]
[402732862,1768860261776,5533.0,0.000154,5]